Workbook

Sheet Sheet1
A1: 顺义区数字菜田各园区大田实际面积统计表
A2: 地区序号 | B2: 地区 | C2: 基地序号 | D2: 基地名称 | E2: 详细地址 | F2: 联系人 | G2: 电话 | H2: 小型气象站 | I2: 安装 | J2: 录入 | K2: 大田总面积（亩） | L2: 园区总面积合计（亩）
A3: 1 | B3: 高丽营镇 | C3: 1 | D3: 北京听澜生态农庄有限公司 | E3: 高丽营镇南郎中村 | F3: 王艳青（男） | G3: 13716833060 | K3: 0 | L3: 49.7
C4: 2 | D4: 北京万科艺园农业科技发展有限公司 | E4: 高丽营镇七村东侧白马路段天白路口西700米 | F4: 孙晓峰（男） | G4: 13301120138 | H4: 1 | I4: 1 | K4: 30 | L4: 325
C5: 3 | D5: 刘景秀 | E5: 高丽营镇西马各庄村 | F5: 刘景秀（女） | G5: 13681061336 | H5: 1 | I5: 1 | K5: 30 | L5: 170
C6: 4 | D6: 樱桃园 | E6: 高丽营镇河津营村 | F6: 高经理（男） | G6: 18601906834 | H6: 2 | I6: 2 | K6: 70 | L6: 200
H7: =H6+H5+H4+H3 -> 4 | I7: 4 | J7: 0 | K7: =K3+K4+K5+K6 -> 130 | L7: =L3+L4+L5+L6 -> 744.7
A8: 2 | B8: 杨镇 | C8: 1 | D8: 花房德源纺盛绿色蔬菜基地 | E8: 杨镇安乐庄村 | F8: 马雪莲（女） | G8: 13683570626 | H8: 1 | I8: 1 | J8: 1 | K8: 70 | L8: 136
C9: 2 | D9: 圣海林伊亩田园 | E9: 杨镇安乐庄村 | F9: 曹杰（男） | G9: 13161296851 | K9: 0
C10: 3 | D10: 阳光公社草莓园 | E10: 杨镇二街村 | F10: 林总（男） | G10: 13506636661 | K10: 0 | L10: 355
C11: 4 | D11: 北京张忠厚花卉种植园 | E11: 杨镇齐家务村 | F11: 张忠厚（男） | G11: 13910813470 | K11: 0 | L11: 100
C12: 5 | D12: 个人 | E12: 杨镇小店村 | F12: 吴福利 （男） | G12: 13601088073 | K12: 0
C13: 6 | D13: 1 | E13: 杨镇小店村 | F13: 张大海 （男） | G13: 13488712468 | H13: 1 | I13: 1 | J13: 1
C14: 7 | D14: 2 | E14: 杨镇小店村 | K14: 0
C15: 8 | D15: 3 | E15: 杨镇小店村 | K15: 0
C16: 9 | D16: 4 | E16: 杨镇小店村 | K16: 0
C17: 10 | D17: 5 | E17: 杨镇小店村 | K17: 0
C18: 11 | D18: 6 | E18: 杨镇小店村 | K18: 0
C19: 12 | D19: 7 | E19: 杨镇小店村 | K19: 0
C20: 13 | D20: 8 | E20: 杨镇小店村 | K20: 0
C21: 14 | D21: 9 | E21: 杨镇小店村 | K21: 0
C22: 15 | D22: 10 | E22: 小店村姓孟园区 | K22: 0
C23: 16 | D23: 11 | E23: 杨镇小店村姓孟园区2区 | K23: 0
C24: 17 | D24: 北京众合顺养殖基地 | E24: 杨镇东疃村 | F24: 王勇（男） | G24: 13811595018 | K24: 0 | L24: 200
C25: 18 | D25: 议航置业 | E25: 杨镇下营村 | F25: 金小强（男） | G25: 13601083081 | K25: 0 | L25: 1100
C26: 19 | D26: 个人 | E26: 杨镇东焦各庄村 | F26: 孙学宽（男） | G26: 18201258773 | K26: 0 | L26: 0
C27: 20 | D27: 北京永安康特莱合作社 | E27: 杨镇东焦各庄村 | F27: 孙学新（男） | G27: 13716021346 | K27: 0 | L27: 106
C28: 21 | D28: 肉肉多肉 | E28: 杨镇侉子营村 | F28: 班朝奇（男） | G28: 15011460052 | H28: 1 | I28: 1 | J28: 1 | K28: 20 | L28: 84
C29: 22 | D29: 个人 | E29: 杨镇下营村 | F29: 马自立（男） | G29: 15810021208 | K29: 0 | L29: 50
C30: 23 | E30: 杨镇田家营村 | F30: 邵（男） | G30: 18511150101 | K30: 0 | L30: 175
C31: 24 | D31: 老好草莓采摘园 | E31: 杨镇三街村 | F31: 郝军（男） | G31: 13910893355 | K31: 0 | L31: 30
C32: 25 | F32: 郝（男） | G32: 15201475660
C33: 26 | D33: 北京市保安服务总公司顺义分公司 | E33: 杨镇周庄村 | F33: 张（男） | G33: 13911170378 | K33: 0
C34: 27 | D34: 草帽公社 | E34: 杨镇齐家务村 | F34: 陈峰（男） | G34: 18611149732 | H34: 2 | I34: 2 | J34: 2 | K34: 100 | L34: 145
C35: 28 | D35: 北京蔬之家农业科技有限公司（御田园） | E35: 顺义区 杨镇松各庄村村北 | F35: 韩硕（男） | G35: 15810376205 | K35: 0 | L35: 130
C36: 29 | D36: 北京市裕农优质农产品种植公司 | E36: 杨镇二街村 | F36: 郭松岩（男） | G36: 13301215250 | H36: 4 | I36: 4 | J36: 4 | K36: 180 | L36: 303
C37: 30 | D37: 北京神农天地农业科技有限公司 | E37: 杨镇焦各庄村路北200米 | F37: 马自立（男） | G37: 15810021208 | K37: 0 | L37: 330
C38: 31 | D38: 北京顺和通蔬菜种植有限公司 | E38: 杨镇下坡村 | F38: 梁（男） | G38: 13601088073 | K38: 0 | L38: 230
C39: 32 | D39: 北京鑫顺恒达蔬菜基地有限公司 | E39: 杨镇辛庄子村 | F39: 汪家喜（男） | G39: 13801159037 | K39: 0 | L39: 100
C40: 33 | D40: 北京荆坨村绿畅果蔬种植园 | E40: 杨镇荆坨村 | F40: 李（男） | G40: 13701152226 | K40: 0 | L40: 70
C41: 34 | D41: 北京三只小猪有机农业有限责任公司 | E41: 杨镇东焦各庄村 | F41: 王博士（女） | G41: 13366989925 | K41: 0 | L41: 70
C42: 35 | D42: 蔬香村蔬菜合作社 | E42: 杨镇安乐庄村 | F42: 马更生（男） | G42: 18210631950 | K42: 0 | L42: 120
C43: 36 | D43: 中国农业科学院蔬菜花卉研究所杨镇试验基地 | E43: 杨镇沙岭村 | F43: 关海瑞（男） | G43: 18310167944 | H43: 4 | I43: 4 | J43: 4 | K43: 140 | L43: 380
H44: =H43+H42+H41+H39+H38+H37+H36+H35+H34+H33+H31+H30+H29+H28+H27+H26+H25+H24+H23+H22+H21+H20+H19+H18+H17+H16+H15+H14+H13+H11+H12+H10+H9+H8 -> 13 | I44: 13 | J44: 13 | K44: =K8+K9+K10+K11+K13+K12+K14+K15+K16+K17+K18+K19+K20+K22+K23+K24+K26+K25+K27+K28+K29+K30+K31+K33+K34+K35+K36+K37+K38+K39+K40+K41+K42+K43 -> 510 | L44: =L8+L9+L10+L11+L13+L12+L14+L15+L16+L17+L18+L19+L20+L22+L23+L24+L26+L25+L27+L28+L29+L30+L31+L33+L34+L35+L36+L37+L38+L39+L40+L41+L42+L43 -> 4214
A45: 3 | B45: 张镇 | C45: 1 | D45: 个人 | E45: 张镇王庄村 | F45: 张立松（男） | G45: 13301359629 | K45: 0 | L45: 165
C46: 2 | D46: 北京海龙兴园林工程有限公司顺义区张镇港西村基地 | E46: 张镇港西村文明街55号 | F46: 邢海龙（男） | G46: 13910092458 | H46: 1 | I46: 1 | K46: 8 | L46: 105
C47: 3 | D47: 北京浮士德生态农业有限公司 | E47: 张镇驻马庄村西 | F47: 刘立海（男） | G47: 13910906075 | K47: 0 | L47: 50
C48: 4 | D48: 北京绿多乐农业有限公司 | E48: 张镇雁户庄村 | F48: 鲁凤岩（女） | G48: 13718978106 | H48: 2 | I48: 2 | J48: 2 | K48: 60 | L48: 82
C49: 5 | D49: 个人 | E49: 张镇聂庄村 | F49: 王建琴（女） | G49: 15910369528 | K49: 0 | L49: 260
H50: =H49+H48+H47+H46+H45 -> 3 | I50: 3 | J50: 2 | K50: =K45+K46+K47+K48+K49 -> 68 | L50: =L45+L46+L47+L48+L49 -> 662
A51: 4 | B51: 牛栏山镇 | C51: 1 | D51: 北京利志农业专业合作社 | E51: 牛栏山镇北孙各庄村 | F51: 董承志（男） | G51: 13501066580 | K51: 0 | L51: 135
C52: 2 | D52: 北京四季阳光花木种植有限公司 | E52: 牛栏山镇北孙各庄村 | F52: 侯凤岭（女） | G52: 13901022600 | K52: 0 | L52: 250
C53: 3 | D53: 北京天都美园林绿化工程有限公司 | E53: 牛栏山镇北孙各庄村 | F53: 郭永民（男） | G53: 18519515559 | K53: 0 | L53: 120
C54: 4 | D54: 卞有林辣椒农场 | E54: 牛栏山镇北孙各庄村 | F54: 乔志霞（女） | G54: 15810825836 | I54: 1 | J54: 1 | K54: 15 | L54: 50
H55: =H54+H53+H52+H51 -> 0 | I55: 1 | J55: 1 | K55: =K51+K52+K53+K54 -> 15 | L55: =L51+L52+L53+L54 -> 555
A56: 5 | B56: 龙湾屯镇 | C56: 1 | D56: 北京御龙湾生态农业有限责任公司 | E56: 龙湾屯镇大北坞村 | F56: 赵正刚（男） | G56: 18910328590 | K56: 0 | L56: 50
C57: 2 | D57: 北京百业众发农业有限公司 | E57: 龙湾屯镇大北坞村 | F57: 朱双民（男） | G57: 13511000777 | K57: 0 | L57: 82.65
C58: 3 | D58: 北京安利隆生态农业有限责任公司 | E58: 龙湾屯镇山里辛庄村 | F58: 闫总（男） | G58: 13910657162 | K58: 0 | L58: 740
C59: 4 | D59: 北京龙湾西坡生态农业有限公司 | E59: 龙湾屯镇大北务村北边 | F59: 卢晓伟（女） | G59: 13716166846 | K59: 0 | L59: 170
C60: 5 | D60: 北京分享收获（分享）农业发展有限公司 | E60: 龙湾屯镇柳庄户村 | F60: 章亚敏（女） | G60: 18789196720 | H60: 2 | I60: 2 | J60: 2 | K60: 23.5 | L60: 275
C61: 6 | D61: 北京吉祥八宝葫芦手工艺品产销专业合作社 | E61: 龙湾屯镇柳庄户村 | F61: 牛成果（男） | G61: 13716669708 | K61: 0 | L61: 50.45
C62: 7 | D62: 张中坞村村民委员会 | E62: 龙湾屯镇张中坞 | F62: 李得全（男） | G62: 13716040157 | H62: 5 | I62: 5 | J62: 5 | K62: 230 | L62: 230
H63: =H62+H61+H60+H59+H58+H57+H56 -> 7 | I63: 7 | J63: 7 | K63: =K56+K57+K58+K60+K61+K62 -> 253.5 | L63: =L56+L57+L58+L60+L61+L62 -> 1428.1
A64: 6 | B64: 马坡镇 | C64: 1 | D64: 洛娃农场 | E64: 马坡镇毛家营村 | F64: 杨山（男） | G64: 13811954556 | H64: 1 | I64: 1 | J64: 1 | K64: 30 | L64: 135
C65: 2 | D65: 北京莲顺农业开发有限公司 | E65: 马坡镇毛家营村西 | F65: 蒋成秀（女） | G65: 15801309981 | H65: 1 | I65: 1 | J65: 1 | K65: 35 | L65: 380.71
C66: 3 | D66: 北京新城美业农业开发有限公司 | E66: 马坡镇毛家营村 | F66: 管新全（男） | G66: 13011147378 | H66: 2 | I66: 2 | J66: 2 | K66: 150 | L66: 210
H67: =H66+H65+H64 -> 4 | I67: 4 | J67: 4 | K67: =K64+K65+K66 -> 215 | L67: =L64+L65+L66 -> 725.71
A68: 7 | B68: 木林镇 | C68: 1 | D68: 个人 | E68: 木林蒋各庄 | F68: 薛新颖 | G68: 13716676862 | K68: 0 | L68: 10
C69: 2 | D69: 陈家坨村委会 | E69: 木林镇陈家坨村 | F69: 王鹤（男） | G69: 13621297065 | K69: 0 | L69: 185
C70: 3 | D70: 个人 | E70: 木林镇荣各庄村 | F70: 高峰（男） | G70: 17301130555 | K70: 0 | L70: 35
C71: 4 | D71: 北京农家宜农业科技有限公司 | E71: 木林镇大林村 | F71: 王小刚（男） | G71: 13811290563 | H71: 1 | I71: 1 | K71: 55.5 | L71: 80
C72: 5 | D72: 北京绿富农果蔬产销专业合作社 | E72: 木林镇贾山村 | F72: 陈欢（女） | G72: 13581580312 | K72: 0
C73: 6 | D73: 北京爱农天地农业有限公司 | E73: 木林镇荣各庄村 | F73: 战新（男） | G73: 13301357989 | K73: 0 | L73: 600
C74: 7 | D74: 北京绿兴特食用菌合作社标准化生产基地 | E74: 木林镇坨头庙村 | F74: 孔繁建（男） | G74: 13910581172 | J74: 0 | K74: 0 | L74: 60
C75: 8 | D75: 北京绿富田园农业发展有限公司 | E75: 木林镇王泮庄村 | F75: 赵薇娜（女） | G75: 18331050503 | K75: 0
C76: 9 | D76: 北京旭万稼农业技术开发有限公司 | E76: 木林镇王泮庄村 | F76: 孙赛（男） | G76: 15001308177 | H76: 1 | I76: 1 | J76: 1 | K76: 50 | L76: 136
H77: =H76+H75+H74+H73+H72+H70+H71+H69+H68 -> 2 | I77: 2 | J77: 1 | K77: 105.5 | L77: =L69+L70+L71+L72+L73+L74+L75+L76 -> 1096
A78: 8 | B78: 李桥镇 | C78: 1 | D78: 北京红河永泰生态农业科技有限公司 | E78: 李桥镇沙浮村 | F78: 刘超（男） | G78: 18600216655 | K78: 0
C79: 2 | D79: 个人 | E79: 李桥镇沿河村 | F79: 王文武（男） | G79: 18513933959 | K79: 0 | L79: 96
C80: 3 | D80: 北京羽翔南山农业科技有限公司 | E80: 李桥镇沙浮村 | F80: 韩永明（男） | G80: 13488871090 | H80: 1 | I80: 1 | J80: 1 | K80: 16 | L80: 50
C81: 4 | D81: 北京顺沿特种蔬菜基地 | E81: 李桥镇北河村西树行北 | F81: 申玉清（男） | G81: 13810872167 | H81: 1 | I81: 1 | K81: 70 | L81: 150
C82: 5 | D82: 北京龙迪种植基地有限公司 | E82: 李桥镇李家桥村 | F82: 贾庆利（男） | G82: 13601008858 | H82: 1 | I82: 1 | K82: 56.8 | L82: 80.75
C83: 6 | D83: 北京世外苑农场 | E83: 李桥镇南庄头村 | F83: 西桂芹（女） | G83: 13910935803 | H83: 2 | I83: 2 | J83: 2 | K83: 30 | L83: 130
C84: 7 | D84: 北京鑫丽园农业专业合作社 | E84: 李桥镇后桥村 | F84: 晁怀国（男） | G84: 13701083166 | K84: 0 | L84: 180
H85: =H84+H83+H82+H81+H80+H79+H78 -> 5 | I85: 5 | J85: 3 | K85: =K78+K79+K80+K81+K82+K83+K84 -> 172.8 | L85: =L78+L79+L80+L81+L82+L83+L84 -> 686.75
A86: 9 | B86: 李遂镇 | C86: 1 | D86: 北京仁德开心农业种植有限公司 | E86: 李遂镇前营村 | F86: 杨景平（男） | G86: 18601135779 | K86: 0 | L86: 315
C87: 2 | D87: 陈庄村村委会 | E87: 李遂镇陈庄村 | F87: 祝魁梧（男） | G87: 13810363521 | K87: 0 | L87: 237
C88: 3 | D88: 北京晨安秾坊生态农业有限公司 | E88: 李遂镇后营村 | F88: 赵春雷（男） | G88: 13520800728 | K88: 0 | L88: 25.1
C89: 4 | D89: 北京地源遂航农业发展有限公司基地 | E89: 李遂镇后营村 | F89: 李 鹏（男） | G89: 13911489681 | I89: 3 | J89: 3 | K89: 150 | L89: 531
C90: 5 | D90: 北京天拿农艺种植园 | E90: 李遂镇葛代子村 | F90: 张春霞（女） | G90: 13910288826 | K90: 0 | L90: 30
C91: 6 | D91: 北京奥格尼克生物技术有限公司 | E91: 李遂镇葛代子村 | F91: 刘子建（男） | G91: 13911930285 | K91: 0 | L91: 80
C93: 7 | D93: 北京春跃红生态农业发展有限公司 | E93: 李遂镇后营村 | F93: 吴连跃（男） | G93: 15901470901 | I93: 2 | J93: 2
C94: 8 | D94: 北京四季润源花卉种植基地 | E94: 李遂镇太平辛庄村 | F94: 汪建武（男） | G94: 13910083001 | K94: 0 | L94: 200
H95: =H94+H93+H92+H91+H90+H89+H88+H87+H86 -> 0 | I95: 5 | J95: 5 | K95: =K86+K87+K88+K89+K90+K91+K92+K93+K94 -> 150 | L95: =L86+L87+L88+L89+L90+L91+L92+L93+L94 -> 1418.1
A96: 10 | B96: 大孙各庄镇 | C96: 1 | D96: 北京前陆马村果蔬产销专业合作社1区 | E96: 大孙各庄镇前陆马村 | F96: 高士友（男） | G96: 13601165173 | H96: 1 | I96: 1 | J96: 1 | K96: 115 | L96: 120
C97: 2 | D97: 北京前陆马村果蔬产销专业合作社2区 | K97: 0 | L97: 45
C98: 3 | D98: 北京丰顺恒农业科技发展有限公司 | E98: 大孙各庄镇府前西街1号 | F98: 孙建元（男） | G98: 18801098985 | K98: 0 | L98: 375
C99: 4 | D99: 北京纯然生态科技有限公司 | E99: 大孙各庄镇东尹家府村村委会东南200米 | F99: 李艳（女） | G99: 15910780900 | H99: 5 | I99: 5 | J99: 5 | K99: 320 | L99: 349
C100: 5 | D100: 正谷（北京）农业发展有限公司 | E100: 大孙各庄镇南聂庄村西南500米 | F100: 张友廷（男） | G100: 18001265689 | H100: 1 | I100: 1 | J100: 1 | K100: 25 | L100: 100
C101: 6 | D101: 北京绿奥蔬菜合作社1区 | E101: 大孙各庄镇四福庄村 | F101: 侯鹏 | G101: 13911407410 | K101: 0 | L101: 144
C102: 7 | D102: 北京绿奥蔬菜合作社2区 | K102: 0 | L102: 96
C103: 8 | D103: 北京美田阳光农场 | E103: 大孙各庄镇东尹家府村村东1500米 | F103: 刘跃明（女） | G103: 13810102581 | H103: 2 | I103: 2 | J103: 2 | K103: 80 | L103: 150
C104: 9 | D104: 吴雄寺村村民委员会 | E104: 大孙各庄镇吴雄寺村 | F104: 卢合发 | G104: 13911155856 | H104: 2 | I104: 2 | J104: 2 | K104: 217 | L104: 296
C105: 10 | D105: 北京溢翠园农业有限公司（哈维斯特） | E105: 大孙各庄镇赵家峪村 | F105: 李伟（男） | G105: 13810955637 | K105: 0 | L105: 230
C106: 11 | D106: 个人 | E106: 大孙各庄镇前陆马村 | F106: 周杰（男） | G106: 13910530616 | H106: 2 | I106: 2 | J106: 2 | K106: 248 | L106: 248
H107: =H106+H105+H104+H103+H102+H101+H100+H99+H98+H97+H96 -> 13 | I107: 13 | J107: 13 | K107: =K96+K97+K98+K99+K100+K101+K102+K103+K104+K105+K106 -> 1005 | L107: =L96+L97+L98+L99+L100+L101+L102+L103+L104+L105+L106 -> 2153
A108: 11 | B108: 北石槽镇 | C108: 1 | D108: 北京好田园生态农业有限公司 | E108: 北石槽镇二张营村村北后道23号 | F108: 王海河 | G108: 18811196758 | K108: 0 | L108: 137
C109: 2 | D109: 北京七彩佳合花卉有限公司 | E109: 北石槽镇东石槽村 | F109: 张元一 | G109: 18911211950 | K109: 0
C110: 3 | D110: 北京绿之杰园林绿化有限公司 | E110: 北石槽镇南石槽村 | F110: 郭华（男） | G110: 13910523654 | K110: 0 | L110: 120
H111: =H110+H109+H108 -> 0 | I111: 0 | J111: 0 | K111: =K108+K109+K110 -> 0 | L111: =L108+L109+L110 -> 257
A112: 12 | B112: 北务镇 | C112: 1 | D112: 北京顺康益品农业有限公司 | E112: 北务镇北务市场西街东侧 | F112: 肖成云（男） | G112: 13901222592 | K112: 0 | L112: 200
C113: 2 | D113: 北京高天顺蔬果产销专业合作社 | E113: 北务镇小珠宝村东 | F113: 许海玲（女） | G113: 13601038319 | K113: 0 | L113: 50
C114: 3 | D114: 北京嘉博文生物农业技术有限公司 | E114: 北务镇王各庄村 | F114: 刘伟（男） | G114: 18910580730 | K114: 0 | L114: 381
C115: 4 | D115: 北京福劳尔花卉有限公司 | E115: 北务镇庄子村木燕路18号 | F115: 孟樊国（男） | G115: 15369618333 | K115: 0 | L115: 696
C116: 5 | D116: 北京三分地农业科技有限公司 | E116: 北务镇林上村进村路8号 | F116: 孟宪夺（女） | G116: 13911673101 | H116: 1 | I116: 1 | J116: 1 | K116: 60 | L116: 160
C117: 6 | D117: 北京市杰海农业科技发展有限公司 | E117: 北务镇林上村向阳街8号 | F117: 王海（男） | G117: 13911788248 | K117: 0 | L117: 90
C118: 7 | D118: 北京盛顺缘生态农业科技开发有限公司 | E118: 北务镇陈辛庄村 | F118: 陈继军（男） | G118: 18600070999 | K118: 0 | L118: 300
C119: 8 | D119: 北京永顺华蔬菜种植有限公司 | E119: 北务镇闫家渠村 | F119: 唐彦华（男） | G119: 13910846298 | H119: 1 | I119: 1 | J119: 1 | K119: 0 | L119: 90
C120: 9 | D120: 北京圣华伟泰科技开发有限公司 | E120: 北务镇庄子村 | F120: 陈阳（女） | G120: 13581650095 | K120: 0 | L120: 20
H121: =H120+H119+H118+H117+H116+H115+H114+H113+H112 -> 2 | I121: 2 | J121: 2 | K121: =K112+K113+K114+K115+K116+K117+K118+K119+K120 -> 60 | L121: =L112+L113+L114+L115+L116+L117+L118+L119+L120 -> 1987
A122: 13 | B122: 北小营镇 | C122: 1 | D122: 北京伊泰华府生态农庄有限公司 | E122: 北小营镇后礼务村 | F122: 刘俊林（男） | G122: 13911805252 | K122: 0 | L122: 460
H123: =H122 -> 0 | I123: 0 | J123: 0 | K123: 0 | L123: 460
A124: 14 | B124: 赵全营镇 | C124: 1 | D124: 北京尚品天缘农业科技有限公司 | E124: 赵全营镇燕华营村 | F124: 陈红宇（男） | G124: 13801338197 13683155240 | H124: 2 | I124: 2 | J124: 2 | K124: 10 | L124: 215
C125: 2 | D125: 北京维基特博农产品产销专业合作社 | E125: 赵全营镇大官庄村兰白路3号 | F125: 田仲林（男） | G125: 13601005706 | K125: 0 | L125: 116
C126: 3 | D126: 北京兴农鼎力种植专业合作社 | E126: 赵全营镇前桑园村 | F126: 王 静（女） | G126: 13718612933 | H126: 3 | I126: 3 | J126: 3 | K126: 70 | L126: 150
C127: 4 | D127: 北京市北郎中果品产销中心 | E127: 赵全营镇北郎中村南 | F127: 杨月明（男） | G127: 13716387500 | H127: 4 | I127: 4 | J127: 4
C128: 5 | D128: 北京京顺银果木种植专业合作社 | E128: 赵全营镇前桑园村 | F128: 孙绍银（男） | G128: 13911352185 | H128: 1 | I128: 1 | J128: 1 | K128: 22 | L128: 42
C129: 6 | D129: 北京兴农天力农机服务专业合作社 | E129: 赵全营镇前桑园村 | F129: 邬春芳（女） | G129: 15101020765 | H129: 5 | I129: 5 | J129: 5 | K129: 430 | L129: 450
H130: =H129+H128+H127+H126+H125+H124 -> 15 | I130: 15 | J130: 15 | K130: =K124+K125+K126+K127+K128+K129 -> 532 | L130: =L124+L125+L126+L127+L128+L129 -> 973
A131: 15 | B131: 南彩镇 | C131: 1 | D131: 北京万禾天下农业科技有限公司 | E131: 南彩镇前薛各庄村 | F131: 孙荣星（男） | G131: 13466631873 | H131: 1 | I131: 1 | J131: 1 | K131: 20 | L131: 35
C132: 2 | D132: 北京天农嘉润农业科技有限公司 | E132: 南彩镇前薛各庄村 | F132: 康东木（男） | G132: 13911896858 | K132: 0 | L132: 209.5
C133: 3 | D133: 北京海华森源农业科技有限公司 | E133: 南彩镇后俸伯村 | F133: 孙树海（男） | G133: 13910913741 | K133: 0 | L133: 54
C134: 4 | D134: 北京阿做农业生态园 | E134: 南彩镇后俸伯村 | F134: 张（男） | G134: 13901396141 | H134: 1 | I134: 1 | J134: 1 | K134: 35 | L134: 35
C135: 5 | D135: 黄家场村村名委员会 | E135: 南彩镇黄家场村 | F135: 黄占龙（男） | G135: 13581711356 | H135: 2 | I135: 1 | J135: 1 | K135: 62 | L135: 62
C136: 6 | D136: 个人 | E136: 南彩镇前薛各庄村 | F136: 王伟（男） | G136: 13301168201 | K136: 0
H137: =H136+H135+H134+H133+H132+H131 -> 4 | I137: 3 | J137: 3 | K137: =K131+K132+K133+K134+K135+K136 -> 117 | L137: =L131+L132+L133+L134+L135+L136 -> 395.5
A138: 数据总和 | C138: =C136+C129+C122+C120+C110+C106+C94+C84+C76+C66+C62+C54+C49+C43+C6 -> 119 | H138: =H137+H130+H123+H121+H111+H107+H95+H85+H77+H67+H63+H55+H50+H44+H7 -> 72 | I138: 77 | J138: 69 | K138: =K7+K44+K50+K55+K63+K67+K77+K85+K95+K107+K111+K121+K123+K130+K137 -> 3333.8 | L138: =L7+L44+L50+L55+L63+L67+L77+L85+L95+L107+L111+L121+L123+L130+L137 -> 17755.86
